bitfinex/quotes_SOLUSD_20250919
["timestamp","ask_amount","ask_price","bid_price","bid_amount"]
[1758269630301,6.65587447,244.48,244.47,0.68]
[1758269631121,6.65587447,244.48,244.47,0.03]
[1758269631716,6.65587447,244.48,244.47,0.68]
[1758269632225,6.65587447,244.48,244.47,0.03]
[1758269632718,6.65587447,244.48,244.47,0.68]
[1758269634411,6.65587447,244.48,244.47,0.03]
[1758269635106,6.65587447,244.48,244.47,0.71]
[1758269636212,5.11316308,244.48,244.47,0.71]
[1758269636520,6.65587447,244.48,244.47,0.71]
[1758269640908,6.65592823,244.48,244.47,0.71]
[1758269645500,6.65592823,244.48,244.47,0.03]
[1758269659109,38.56592823,244.48,244.47,0.03]
[1758269660710,7.32592823,244.48,244.47,0.03]
[1758269660912,38.56592823,244.48,244.47,0.03]
[1758269661450,37.89592823,244.48,244.47,0.03]
[1758269661735,38.56592823,244.48,244.47,0.03]
[1758269662837,37.54302552,244.48,244.47,0.03]
[1758269664236,38.56599562,244.48,244.47,0.03]
[1758269664429,37.89600894,244.48,244.47,0.03]
[1758269664614,37.54302552,244.48,244.47,0.03]
[1758269667441,38.56600894,244.48,244.47,0.03]
[1758269668738,33.56600894,244.48,244.47,0.03]
[1758269669739,37.65632307,244.48,244.47,0.03]
[1758269669941,36.98632307,244.48,244.47,0.03]
[1758269671740,38.76429674,244.48,244.47,0.03]
[1758269672729,38.76430303,244.48,244.47,0.03]
[1758269673835,38.76430303,244.48,244.47,0.75]
[1758269674342,5.11330384,244.48,244.47,0.75]
[1758269674530,37.74131332,244.48,244.47,0.75]
[1758269677153,35.33031413,244.48,244.47,0.75]
[1758269679143,4.15031413,244.48,244.47,0.75]
[1758269679350,35.39031413,244.48,244.47,0.75]
[1758269679751,4.15031413,244.48,244.47,0.75]
[1758269679941,35.39031413,244.48,244.47,0.03]
[1758269680246,35.39031413,244.48,244.47,0.75]
[1758269681534,35.39031413,244.48,244.47,0.03]
[1758269681743,35.39031413,244.48,244.47,0.75]
[1758269683656,35.39031413,244.48,244.47,0.03]
[1758269688160,0.06,244.48,244.47,0.75]
[1758269688861,0.06,244.48,244.47,3.16099919]
[1758269689464,0.06,244.48,244.47,7.25148063]
[1758269694147,0.06,244.48,244.47,8.88911344]
[1758269696472,0.06,244.48,244.47,4.798632]
[1758269698955,0.06,244.48,244.47,4.078632]
[1758269699265,0.06,244.48,244.47,0.03]
[1758269699568,4.85031413,244.48,244.47,0.03]
[1758269702876,0.06,244.48,244.47,0.72]
[1758269705785,0.06,244.48,244.47,2.35769985]
[1758269706167,0.06,244.48,244.47,1.66769985]
[1758269706961,0.06,244.48,244.47,2.35769985]
[1758269708178,0.06,244.48,244.47,8.85918048]
[1758269709563,0.06,244.48,244.47,4.76869904]
[1758269709867,0.06,244.48,244.47,4.07869904]
[1758269710962,0.06,244.48,244.47,1.66769985]
[1758269711173,0.76,244.48,244.47,1.66769985]
[1758269711572,0.06,244.48,244.47,1.66769985]
[1758269711776,0.06,244.48,244.47,2.35769985]
[1758269712578,0.06,244.48,244.47,1.66769985]
[1758269713859,0.06,244.48,244.47,0.03]
[1758269715868,0.06,244.48,244.47,0.72]
[1758269716086,0.06,244.48,244.47,3.13099919]
[1758269716760,0.06,244.48,244.47,4.76863199]
[1758269718065,0.06,244.48,244.47,4.07863199]
[1758269718261,0.06,244.48,244.47,1.6676328]
[1758269718468,0.76,244.48,244.47,1.6676328]
[1758269718971,0.76,244.48,244.47,0.03]
[1758269719375,0.06,244.48,244.47,0.03]
[1758269720464,0.76,244.48,244.47,0.03]
[1758269720779,0.06,244.48,244.47,0.03]
[1758269720964,4.85031413,244.48,244.47,0.03]
[1758269724464,0.06,244.48,244.47,0.03]
[1758269724682,0.06,244.48,244.47,0.72]
[1758269725191,0.06,244.48,244.47,0.03]
[1758269732176,0.06,244.48,244.47,2.44099919]
[1758269733398,0.06,244.48,244.47,3.11099919]
[1758269734007,0.06,244.48,244.47,2.242029]
[1758269734186,0.06,244.48,244.47,1.572029]
[1758269736008,0.74,244.48,244.47,1.572029]
[1758269736496,4.83031413,244.48,244.47,0.03]
[1758269744407,0.06,244.48,244.47,2.242029]
[1758269748912,0.06,244.48,244.47,0.03]
[1758269749109,0.06,244.48,244.47,2.242029]
[1758269751302,0.06,244.48,244.47,0.7]
[1758269751637,0.06,244.48,244.47,1.572029]
[1758269751921,0.74,244.48,244.47,0.03]
[1758269752094,0.06,244.48,244.47,0.03]
[1758269753496,0.74,244.48,244.47,0.03]
[1758269753803,4.83031413,244.48,244.47,0.03]
[1758269754002,0.06,244.48,244.47,0.03]
[1758269754308,0.06,244.48,244.47,2.242029]
[1758269755908,0.06,244.48,244.47,1.572029]
[1758269756514,0.06,244.48,244.47,2.242029]
[1758269762422,0.06,244.48,244.47,6.33251044]
[1758269763220,0.06,244.48,244.47,18.61425363]
[1758269766800,0.06,244.49,244.47,18.61425363]
[1758269767029,0.06,244.49,244.48,4.76031413]
[1758269767431,0.06,244.49,244.48,17.04054909]
[1758269767937,15.39349985,244.5,244.48,17.32487223]
[1758269768237,0.06,244.57,244.51,27.542029]
[1758269768403,0.06,244.57,244.52,31.50432314]
[1758269768603,0.06,244.57,244.52,32.17432314]
[1758269769028,0.06,244.57,244.52,36.26396815]
[1758269769206,0.06,244.57,244.52,39.44302676]
[1758269770331,0.06,244.57,244.52,51.49659177]
[1758269770632,0.06,244.57,244.52,53.03862077]
[1758269779924,0.71,244.57,244.52,53.03862077]
[1758269784547,0.71,244.57,244.52,53.06862077]
[1758269785245,0.06,244.56,244.52,53.06862077]
[1758269787146,0.06,244.56,244.52,51.52659177]
[1758269787449,0.06,244.56,244.52,53.06862077]
[1758269788735,0.06,244.56,244.52,51.52659177]
[1758269789052,0.06,244.56,244.52,53.06862077]
[1758269792155,0.06,244.56,244.52,53.16862077]
[1758269795759,0.06,244.56,244.52,54.03380483]
[1758269796053,0.06,244.56,244.52,54.01380483]
[1758269796760,0.06,244.56,244.52,22.71380483]
[1758269796958,0.06,244.56,244.52,51.60659177]
[1758269797157,0.72,244.56,244.52,54.01380483]
[1758269800164,0.06,244.56,244.52,54.01380483]
[1758269805145,0.72,244.53,244.52,53.32380483]
[1758269805571,0.72,244.53,244.52,39.72821082]
[1758269805754,0.06,244.53,244.52,39.72821082]
[1758269807279,0.06,244.53,244.52,40.41821082]
[1758269807980,0.06,244.53,244.52,39.72821082]
[1758269808681,0.06,244.53,244.52,37.32099776]
[1758269808884,0.06,244.53,244.52,39.72821082]
[1758269809263,0.01396685,244.53,244.52,39.72821082]
[1758269813516,0.01396685,244.53,244.52,39.70821082]
[1758269813980,0.01396685,244.53,244.52,40.39821082]
[1758269814775,0.01396685,244.53,244.52,39.70821082]
[1758269816868,0.72396685,244.53,244.52,8.44821082]
[1758269817178,0.01396685,244.53,244.52,39.70821082]
[1758269819190,0.18255335,244.54,244.52,39.70821082]
[1758269819373,0.06,244.56,244.52,39.70821082]
[1758269819569,0.06,244.56,244.54,2.40721306]
[1758269819778,0.06,244.56,244.55,31.24]
[1758269820493,0.06,244.56,244.55,35.32914332]
[1758269821194,0.75,244.56,244.55,35.32914332]
[1758269821397,0.75,244.56,244.55,5.72610593]
[1758269821691,0.06,244.56,244.55,39.37331899]
[1758269822097,0.75,244.56,244.55,39.37331899]
[1758269822490,0.06,244.56,244.55,39.37331899]
[1758269823275,0.06,244.56,244.55,8.13331899]
[1758269823476,0.06,244.56,244.55,39.37331899]
[1758269823681,0.06,244.56,244.55,36.96610593]
[1758269824710,0.06,244.56,244.55,5.72610593]
[1758269824879,0.75,244.56,244.55,31.24]
[1758269827076,0.75,244.56,244.53,4.0894724]
[1758269827287,0.75,244.56,244.54,31.24]
[1758269828300,0.75,244.56,244.55,31.24]
[1758269830179,0.75,244.56,244.55,31.22]
[1758269832187,0.75,244.56,244.53,4.08936156]
[1758269832387,0.06,244.56,244.54,31.22]
[1758269833613,0.06,244.56,244.53,4.08936156]
[1758269833815,0.06,244.56,244.55,31.22]
[1758269836413,0.06,244.56,244.55,36.26346646]
[1758269836803,0.06,244.56,244.55,49.85906047]
[1758269837187,0.06,244.56,244.55,51.49588911]
[1758269837386,1e-08,244.56,244.55,51.49588911]
[1758269837612,1e-08,244.57,244.56,13.87991715]
[1758269837910,1e-08,244.57,244.56,16.95713021]
[1758269838540,1e-08,244.57,244.56,21.04610633]
[1758269838701,1e-08,244.57,244.56,22.68260014]
[1758269839217,1e-08,244.58,244.56,23.09149775]
[1758269839408,1e-08,244.58,244.57,31.50432314]
[1758269839712,1e-08,244.58,244.57,32.17432314]
[1758269839935,1e-08,244.58,244.57,33.81068306]
[1758269840630,1e-08,244.58,244.57,37.89949198]
[1758269843547,0.06,244.61,244.6,39.87991715]
[1758269843716,0.06,244.61,244.6,73.50713021]
[1758269844034,0.06,244.61,244.6,42.95713021]
[1758269844235,0.06,244.61,244.6,75.81349013]
[1758269845511,0.06,244.61,244.6,79.90179757]
[1758269849141,0.75,244.61,244.6,31.72466736]
[1758269849349,0.75,244.61,244.6,62.94466736]
[1758269849642,0.06,244.61,244.6,62.94466736]
[1758269849822,0.75,244.61,244.6,5.72466736]
[1758269850031,0.75,244.61,244.6,36.94466736]
[1758269850222,0.06,244.61,244.6,36.94466736]
[1758269851745,0.75,244.61,244.6,36.94466736]
[1758269851955,0.75,244.61,244.6,31.2]
[1758269852128,0.75,244.61,244.58,4.08864175]
[1758269852339,0.69,244.6,244.59,31.2]
[1758269853953,0.69,244.6,244.59,35.28847459]
[1758269854251,0.69,244.6,244.59,36.92523625]
[1758269855329,0.69,244.6,244.59,35.28847459]
[1758269856014,0.69,244.6,244.59,35.31847459]
[1758269856838,0.69,244.6,244.59,31.23]
[1758269857230,0.06,244.61,244.59,35.31847459]
[1758269857626,0.75,244.61,244.59,35.31847459]
[1758269857828,0.69,244.6,244.59,4.11847459]
[1758269858135,0.69,244.6,244.59,31.25]
[1758269858730,0.06,244.61,244.59,31.25]
[1758269859540,0.06,244.61,244.6,0.71]
[1758269860250,0.06,244.61,244.59,31.25]
[1758269860424,0.06,244.61,244.59,32.79061947]
[1758269860832,0.06,244.61,244.6,4.08830744]
[1758269861842,0.06,244.61,244.6,4.79830744]
[1758269864050,0.06,244.61,244.6,4.08830744]
[1758269865531,0.06,244.61,244.6,5.72500214]
[1758269866434,0.06,244.61,244.6,6.43500214]
[1758269867441,0.06,244.61,244.6,5.72500214]
[1758269868155,0.06,244.61,244.6,6.43500214]
[1758269873249,0.06,244.61,244.6,4.79830744]
[1758269876450,0.06,244.61,244.6,20.31458451]
[1758269878364,1e-08,244.61,244.6,20.31458451]
[1758269882163,1e-08,244.61,244.6,51.51458451]
[1758269883073,1e-08,244.61,244.6,20.31458451]
[1758269883262,1e-08,244.61,244.6,53.05520398]
[1758269883444,1e-08,244.61,244.6,52.20304241]
[1758269883646,1e-08,244.61,244.6,5.72466736]
[1758269883970,0.69000001,244.61,244.6,5.72466736]
[1758269884169,1e-08,244.61,244.6,36.92466736]
[1758269884377,1e-08,244.61,244.6,35.28830744]
[1758269884749,1e-08,244.61,244.6,36.24263058]
[1758269885772,1e-08,244.61,244.6,49.83822459]
[1758269887051,0.03,244.62,244.61,0.28432314]
[1758269887257,0.03,244.62,244.61,2.49494261]
[1758269888279,0.03,244.62,244.61,6.58308291]
[1758269888667,0.03,244.62,244.61,20.17867692]
[1758269889765,0.06,244.64,244.63,39.59559401]
[1758269889967,0.06,244.64,244.63,72.62053662]
[1758269890169,0.06,244.64,244.63,73.29053662]
[1758269890986,0.06,244.64,244.63,79.01436797]
[1758269893679,1e-08,244.64,244.63,79.01436797]
[1758269907393,0.1,244.69,244.68,0.28432314]
[1758269907592,0.1,244.69,244.68,52.7830145]
[1758269908092,0.1,244.69,244.68,53.4930145]
[1758269908289,0.1,244.69,244.68,57.57998523]
[1758269908598,0.1,244.69,244.68,59.21574289]
[1758269911482,0.16,244.69,244.68,59.21574289]
[1758269913996,0.16,244.69,244.68,58.50574289]
[1758269916109,0.16,244.69,244.68,59.21574289]
[1758269916479,0.16,244.69,244.68,58.50574289]
[1758269916692,0.16,244.69,244.68,59.21574289]
[1758269917806,0.16,244.69,244.68,56.32026214]
[1758269918383,0.16,244.69,244.68,19.60264554]
[1758269918627,0.16,244.69,244.68,53.18645384]
[1758269923516,0.16,244.69,244.68,53.89645384]
[1758269923703,0.16,244.69,244.68,56.30026214]
[1758269924420,0.16,244.69,244.68,55.59026214]
[1758269925500,0.16,244.69,244.68,56.30026214]
[1758269925906,0.16,244.69,244.68,55.59026214]
[1758269926506,0.16,244.69,244.68,53.18645384]
[1758269927719,0.16,244.69,244.68,56.30026214]
[1758269930421,1e-08,244.69,244.68,56.30026214]
[1758269932123,0.1,244.73,244.72,39.87991715]
[1758269932424,0.1,244.73,244.72,73.46372545]
[1758269932814,0.1,244.73,244.72,74.17372545]
[1758269933416,0.1,244.73,244.72,79.89551829]
[1758269934025,132.0,244.87,244.72,90.11127507]
[1758269934217,0.79,244.79,244.78,2.4038083]
[1758269934409,0.79,244.79,244.78,33.5838083]
[1758269934607,0.79,244.79,244.78,45.84898134]
[1758269935206,0.79,244.79,244.78,49.93428242]
[1758269937714,0.1,244.79,244.78,49.93428242]
[1758269938120,0.1,244.79,244.78,16.35047412]
[1758269938322,0.1,244.79,244.78,49.93428242]
[1758269940433,0.79,244.79,244.78,49.93428242]
[1758269941230,0.1,244.79,244.78,49.93428242]
[1758269945442,0.1,244.79,244.78,47.53047412]
[1758269945646,0.79,244.79,244.78,49.93428242]
[1758269945943,0.79,244.79,244.78,16.35047412]
[1758269946140,0.1,244.79,244.78,49.93428242]
[1758269947557,0.1,244.79,244.78,47.53047412]
[1758269947848,0.1,244.79,244.78,49.93428242]
[1758269949948,0.16,244.79,244.78,49.93428242]
[1758269951850,0.16,244.79,244.78,47.53047412]
[1758269952030,0.16,244.79,244.78,49.93428242]
[1758269954056,0.16,244.79,244.78,50.60428242]
[1758269954443,0.16,244.79,244.78,48.20047412]
[1758269954753,0.16,244.79,244.78,49.93428242]
[1758269955240,0.16,244.79,244.78,50.60428242]
[1758269960360,0.16,244.79,244.78,17.02047412]
[1758269960556,0.16,244.79,244.78,49.93428242]
[1758269964462,0.16,244.79,244.78,37.66910938]
[1758269964842,0.16,244.79,244.78,41.7531074]
[1758269965163,0.85,244.79,244.78,35.26399802]
[1758269965367,0.16,244.79,244.78,35.26399802]
[1758269965665,0.16,244.79,244.78,38.34910938]
[1758269966450,0.16,244.79,244.78,42.49326108]
[1758269966654,0.16,244.79,244.78,56.37317823]
[1758269967985,0.16,244.79,244.78,56.39317823]
[1758269975872,0.16,244.79,244.78,9.19377592]
[1758269976184,0.16,244.79,244.78,42.77758422]
[1758269977785,0.16,244.79,244.78,41.91096523]
[1758269979594,0.06,244.82,244.81,26.0]
[1758269979763,0.06,244.82,244.81,59.00151245]
[1758269979960,0.06,244.82,244.81,59.68151245]
[1758269980357,0.79,244.89,244.83,0.28432314]
[1758269980688,0.79,244.89,244.88,5.6208221]
[1758269980689,0.1,244.89,244.88,5.6208221]
[1758269980862,13.52710996,244.97,244.88,36.8608221]
[1758269981198,0.69,244.95,244.9,1.53718931]
[1758269981356,0.69,244.94,244.91,31.24]
[1758269981559,26.69,244.98,244.91,31.24]
[1758269981758,26.69,244.98,244.92,1.53718931]
[1758269981994,26.69,244.98,244.93,31.26]
[1758269982153,0.69,244.97,244.93,31.26]
[1758269982357,0.69,244.96,244.93,31.26]
[1758269982763,0.1,244.99,244.94,1.53718931]
[1758269982963,0.1,244.99,244.95,31.26]
[1758269983189,0.69,244.98,244.95,31.26]
[1758269987488,4.7719773,244.98,244.95,31.26]
[1758269988183,4.0819773,244.98,244.95,31.26]
[1758269988385,0.1,244.99,244.95,31.26]
[1758269988787,0.79,244.99,244.95,31.26]
[1758269988986,4.87185282,244.99,244.95,31.26]
[1758269989475,0.06,244.98,244.95,31.26]
[1758269989677,0.06,244.98,244.95,32.79718931]
[1758269990095,0.06,244.98,244.95,31.26]
[1758269990991,0.06,244.98,244.95,35.34164397]
[1758269993003,0.06,244.98,244.95,36.87883328]
[1758269993504,0.06,244.98,244.95,36.87962169]
[1758269994700,0.06,244.98,244.95,32.79718931]
[1758270000326,0.06,244.98,244.95,33.46718931]
[1758270000917,0.06,244.98,244.95,36.87963816]
[1758270001111,0.06,244.98,244.96,0.67]
[1758270001295,0.06,244.98,244.97,32.81718931]
[1758270001496,0.06,244.98,244.97,33.48718931]
[1758270002101,0.06,244.98,244.97,31.95]
[1758270002413,0.06,244.98,244.97,33.48718931]
[1758270002797,0.06,244.98,244.97,31.28]
[1758270002999,0.06,244.98,244.97,32.81718931]
[1758270003398,0.71,244.98,244.92,31.28]
[1758270003620,0.65,244.97,244.92,31.28]
[1758270003795,4.14210047,244.98,244.92,31.28]
[1758270003997,14.34701515,244.98,244.92,31.28]
[1758270005633,0.65,244.97,244.93,31.36]
[1758270005917,2.18718931,244.96,244.93,31.36]
[1758270006118,0.65,244.95,244.93,31.36]
[1758270006818,4.08263248,244.94,244.93,31.36]
[1758270007605,6.26982179,244.94,244.91,31.36]
[1758270008000,6.26982179,244.94,244.92,0.03]
[1758270008418,16.47640299,244.94,244.92,0.03]
[1758270010399,4.08263248,244.94,244.92,0.03]
[1758270010619,36.85536001,244.97,244.92,0.03]
[1758270010620,4.08238845,244.96,244.92,0.03]
[1758270010923,4.73238845,244.96,244.92,0.03]
[1758270011124,4.08238845,244.96,244.92,0.7]
[1758270011724,4.08238845,244.96,244.92,0.03]
[1758270011725,4.73238845,244.96,244.92,0.03]
[1758270012924,4.0821325,244.97,244.92,0.03]
[1758270013105,4.0821325,244.97,244.93,0.67]
[1758270013615,4.0821325,244.97,244.92,0.03]
[1758270013616,4.7321325,244.97,244.92,0.03]
[1758270014006,0.65,244.96,244.92,0.03]
[1758270014430,0.65,244.95,244.92,0.03]
[1758270015830,4.08263248,244.94,244.92,0.03]
[1758270018108,4.0824658,244.95,244.92,0.03]
[1758270019336,4.08229915,244.96,244.92,0.03]
[1758270020017,4.73229915,244.96,244.92,0.03]
[1758270022430,4.08263248,244.94,244.92,0.03]
[1758270025818,4.0824658,244.95,244.92,0.03]
[1758270026335,4.7524658,244.95,244.92,0.03]
[1758270026535,4.0824658,244.95,244.92,0.03]
[1758270026718,0.67,244.94,244.92,0.03]
[1758270027033,4.08277065,244.94,244.92,0.03]
[1758270030221,4.08277065,244.94,244.92,0.7]
[1758270031840,4.0824658,244.95,244.92,0.03]
[1758270032047,16.49581963,244.95,244.92,0.03]
[1758270032218,0.67,244.94,244.92,0.03]
[1758270032940,0.67,244.94,244.92,1.56718931]
[1758270033132,0.67,244.94,244.92,0.03]
[1758270033334,0.67,244.94,244.92,1.56718931]
[1758270033544,14.28863032,244.95,244.92,1.56718931]
[1758270033724,14.95863032,244.95,244.92,1.56718931]
[1758270034142,14.95863032,244.95,244.92,0.03]
[1758270034345,14.95863032,244.95,244.92,1.56718931]
[1758270035221,0.67,244.94,244.92,0.03]
[1758270035843,0.67,244.93,244.92,0.03]
[1758270036045,0.67,244.94,244.92,0.03]
[1758270036745,10.20616452,244.95,244.92,0.03]
[1758270036951,14.95863032,244.95,244.92,0.03]
[1758270037731,14.28863032,244.95,244.92,0.03]
[1758270038026,0.67,244.94,244.92,0.03]
[1758270038233,4.08279916,244.93,244.92,0.03]
[1758270038640,4.08262257,244.95,244.92,0.03]
[1758270038845,4.08262257,244.95,244.93,1.53718931]
[1758270039051,4.75262257,244.95,244.92,1.56718931]
[1758270039848,4.75262257,244.95,244.92,2.43079601]
[1758270040144,4.08262257,244.95,244.92,2.43079601]
[1758270040550,4.08262257,244.95,244.92,0.03]
[1758270040733,4.08262257,244.95,244.92,2.43079601]
[1758270041432,4.08262257,244.95,244.92,0.03]
[1758270041645,0.06,244.98,244.94,2.40079601]
[1758270041831,0.06,244.98,244.92,0.03]
[1758270041832,0.06,244.98,244.96,2.40079601]
[1758270042854,4.14211041,244.98,244.96,2.40079601]
[1758270045938,4.14211041,244.98,244.96,3.07079601]
[1758270046142,4.14211041,244.98,244.97,0.67]
[1758270046753,4.14211041,244.98,244.96,2.40079601]
[1758270047052,4.14211041,244.98,244.96,3.07079601]
[1758270048466,4.14211041,244.98,244.96,2.40079601]
[1758270049558,4.14211041,244.98,244.96,3.07079601]
[1758270050146,0.06,244.98,244.96,3.07079601]
[1758270050344,0.06,244.98,244.97,0.67]
[1758270050547,0.06,244.98,244.96,2.40079601]
[1758270051138,0.06,244.98,244.96,3.07079601]
[1758270051539,0.06,244.98,244.96,2.40079601]
[1758270051868,0.06,244.98,244.97,2.40079601]
[1758270052562,0.06,244.98,244.97,3.07079601]
[1758270053064,0.06,244.98,244.97,2.40079601]
[1758270053249,0.06,244.98,244.97,0.67]
[1758270053442,0.06,244.98,244.97,2.40079601]
[1758270053835,0.06,244.98,244.97,3.07079601]
[1758270054362,0.06,244.98,244.97,2.40079601]
[1758270054554,4.81198748,244.98,244.96,2.40079601]
[1758270054873,4.14198748,244.98,244.96,2.40079601]
[1758270057465,4.14198748,244.98,244.94,0.67]
[1758270057666,4.14198748,244.98,244.96,2.40079601]
[1758270057846,4.83198748,244.98,244.94,0.67]
[1758270058169,4.14198748,244.98,244.95,2.40079601]
[1758270059774,4.14198748,244.98,244.95,3.12079601]
[1758270060283,4.14198748,244.98,244.95,2.40079601]
[1758270060451,4.14198748,244.98,244.95,3.12079601]
[1758270060774,4.14198748,244.98,244.92,0.03]
[1758270061079,0.69,244.97,244.92,0.03]
[1758270061450,2.40079601,244.97,244.92,0.03]
[1758270061649,3.81079601,244.96,244.92,0.03]
[1758270062373,4.0824658,244.95,244.92,0.03]
[1758270063063,4.7724658,244.95,244.92,0.03]
[1758270063372,0.69,244.94,244.93,0.03]
[1758270063570,4.7724658,244.95,244.93,0.03]
[1758270064082,4.0824658,244.95,244.93,0.03]
[1758270064281,0.69,244.94,244.93,0.03]
[1758270064575,4.77263248,244.94,244.93,0.03]
[1758270067075,4.08263248,244.94,244.93,0.03]
[1758270069564,4.77263248,244.94,244.93,0.03]
[1758270070255,7.17342849,244.94,244.93,0.03]
[1758270071781,8.8085175,244.94,244.93,0.03]
[1758270073685,13.59559401,244.93,244.92,1e-08]
[1758270073858,45.11991715,244.93,244.92,1e-08]
[1758270074164,45.80991715,244.93,244.92,1e-08]
[1758270074366,47.44534041,244.93,244.92,1e-08]
[1758270074772,16.20534041,244.93,244.92,1e-08]
[1758270074967,47.46534041,244.93,244.92,1e-08]
[1758270075191,49.86613642,244.93,244.92,1e-08]
[1758270075978,53.94893558,244.93,244.92,1e-08]
[1758270076164,39.87991715,244.9,244.89,1e-08]
[1758270076362,73.54071316,244.9,244.89,1e-08]
[1758270076564,74.23071316,244.9,244.89,1e-08]
[1758270076777,75.86647082,244.9,244.89,1e-08]
[1758270078064,79.94977012,244.9,244.89,1e-08]
[1758270080464,48.68977012,244.9,244.89,1e-08]
[1758270080689,79.96977012,244.9,244.89,1e-08]
[1758270081583,26.0,244.83,244.82,0.72]
[1758270081783,59.68079601,244.83,244.82,0.72]
[1758270082781,67.83151068,244.83,244.82,0.72]
[1758270087788,36.57151068,244.83,244.82,0.72]
[1758270087992,67.83151068,244.83,244.82,0.72]
[1758270090377,65.43071467,244.83,244.82,0.72]
[1758270090586,67.83151068,244.83,244.82,0.72]
[1758270094565,67.81151068,244.83,244.82,0.72]
[1758270095996,36.57151068,244.83,244.82,0.72]
[1758270096183,67.81151068,244.83,244.82,0.72]
[1758270101101,67.81151068,244.83,244.82,0.75]
[1758270101901,65.41071467,244.83,244.82,0.75]
[1758270102104,66.94920158,244.83,244.82,0.75]
[1758270103096,66.94920158,244.83,244.82,0.03]
[1758270107399,66.94920158,244.83,244.82,0.71]
[1758270107794,66.94920158,244.83,244.82,0.03]
[1758270109497,65.41071467,244.83,244.82,0.03]
[1758270109699,66.94920158,244.83,244.82,0.71]
[1758270112799,66.94920158,244.83,244.82,0.03]
[1758270112989,66.94920158,244.83,244.82,0.71]
[1758270113701,62.86295368,244.83,244.82,0.71]
[1758270116003,62.86295368,244.83,244.82,0.03]
[1758270116693,31.62295368,244.83,244.82,0.7]
[1758270116903,62.84295368,244.83,244.82,0.7]
[1758270118491,62.84295368,244.83,244.82,0.03]
[1758270119003,31.62295368,244.83,244.82,0.03]
[1758270119187,62.84295368,244.83,244.82,0.03]
[1758270121000,31.62295368,244.83,244.82,0.03]
[1758270121214,62.84295368,244.83,244.82,0.03]
[1758270122519,63.86432033,244.83,244.82,0.03]
[1758270131114,31.10583342,244.83,244.82,0.03]
[1758270131322,63.86432033,244.83,244.82,0.03]
[1758270134424,5.10583342,244.83,244.82,0.7]
[1758270134629,36.32583342,244.83,244.82,0.7]
[1758270135227,36.32583316,244.83,244.82,0.7]
[1758270137622,36.32583316,244.83,244.82,0.03]
[1758270138319,1.02136639,244.83,244.82,0.7]
[1758270138504,1.53848691,244.84,244.82,0.7]
[1758270138829,1.02136011,244.83,244.82,0.03]
[1758270139036,2.55984702,244.83,244.82,0.03]
[1758270139197,48.34976417,244.83,244.82,0.03]
[1758270140005,49.98592329,244.83,244.82,0.03]
[1758270140624,54.07039006,244.83,244.82,0.03]
[1758270141204,22.85039006,244.83,244.82,0.03]
[1758270141405,39.54047291,244.83,244.82,0.03]
[1758270141636,36.36582688,244.83,244.82,0.03]
[1758270144431,36.36582688,244.83,244.82,0.7]
[1758270144648,5.10582688,244.83,244.82,0.7]
[1758270144925,0.06,244.87,244.82,2.23848691]
[1758270145138,0.06,244.87,244.86,1.53848691]
[1758270145506,0.06,244.87,244.86,2.23848691]
[1758270147640,0.06,244.87,244.86,0.7]
[1758270147856,0.06,244.87,244.86,2.23848691]
[1758270154158,0.06,244.87,244.86,0.7]